bitfinex-derivatives/quotes_BNBF0:USTF0_20250329
["timestamp","ask_amount","ask_price","bid_price","bid_amount"]
[1743291008190,2.879,601.72,601.39,0.33256289]
[1743291016503,1.733,601.71,601.39,0.33256289]
[1743291021311,0.921,601.7,601.39,0.33256289]
[1743291022915,2.541,601.7,601.39,0.33256289]
[1743291024318,3.166,601.7,601.39,0.33256289]
[1743291034119,4.312,601.7,601.39,0.33256289]
[1743291034526,5.689,601.7,601.39,0.33256289]
[1743291047228,6.844,601.7,601.39,0.33256289]
[1743291095674,6.844,601.7,601.41,1.49265184]
[1743291095979,6.844,601.7,601.42,0.3325463]
[1743291097482,6.844,601.7,601.45,1.49265184]
[1743291097681,6.844,601.7,601.46,0.33252419]
[1743291099183,6.844,601.7,601.46,1.82517603]
[1743291100984,6.844,601.7,601.46,0.33252419]
[1743291164949,6.844,601.7,601.46,0.00052419]
[1743291211580,1.11598387,601.69,601.46,0.00052419]
[1743291212285,2.13759832,601.9,601.46,0.00052419]
[1743291212584,6.73193288,601.89,601.46,0.00052419]
[1743291212882,10.29827635,601.88,601.46,0.00052419]
[1743291213082,6.73193288,601.87,601.46,0.00052419]
[1743291213281,6.73193288,601.86,601.46,0.00052419]
[1743291213483,5.25907468,601.85,601.46,0.00052419]
[1743291213682,5.25907468,601.84,601.46,0.00052419]
[1743291213878,5.25907468,601.83,601.46,0.00052419]
[1743291214084,5.25907468,601.82,601.46,0.00052419]
[1743291214279,4.59433456,601.81,601.46,0.00052419]
[1743291214477,4.59433456,601.8,601.46,0.00052419]
[1743291214682,3.67380955,601.79,601.46,0.00052419]
[1743291214983,3.67380955,601.78,601.46,0.00052419]
[1743291215184,6.57541192,601.77,601.46,0.00052419]
[1743291215384,3.67380955,601.76,601.46,0.00052419]
[1743291215584,4.31460604,601.75,601.46,0.00052419]
[1743291215781,1.41300367,601.74,601.46,0.00052419]
[1743291215982,1.41300367,601.73,601.46,0.00052419]
[1743291216186,1.41300367,601.72,601.46,0.00052419]
[1743291216383,1.41300367,601.71,601.46,0.00052419]
[1743291216591,1.41300367,601.7,601.46,0.00052419]
[1743291216786,1.11600091,601.7,601.46,0.00052419]
[1743291217389,1.11600091,601.69,601.46,0.00052419]
[1743291217591,1.41294005,601.68,600.96,1.49265184]
[1743291217792,1.41294005,601.67,601.27,0.28933213]
[1743291217988,1.41294005,601.66,601.27,0.28933213]
[1743291218189,1.41294005,601.65,600.97,0.33279531]
[1743291218387,1.41294005,601.64,600.97,0.33279531]
[1743291218591,1.41294005,601.63,601.27,0.28933453]
[1743291218786,1.41294005,601.62,600.97,0.33279531]
[1743291218986,1.11600091,601.66,600.97,0.33279531]
[1743291219292,1.11600091,601.62,601.27,0.28933814]
[1743291219486,1.11600091,601.62,600.97,0.33279531]
[1743291219685,1.231,601.74,600.97,0.33279531]
[1743291219686,1.11600091,601.61,601.27,0.28933934]
[1743291220087,1.11600091,601.61,600.97,0.33279531]
[1743291220385,1.11600091,601.61,601.27,0.28934054]
[1743291220586,1.11600091,601.6,600.97,0.33279531]
[1743291220893,1.11600091,601.59,600.97,0.33279531]
[1743291221193,1.11600091,601.59,600.98,0.28938746]
[1743291221393,1.11600091,601.59,600.99,0.33278423]
[1743291221693,1.231,601.74,600.99,0.33278423]
[1743291221893,4.59238077,601.73,600.99,0.33278423]
[1743291222194,7.49281176,601.72,600.99,0.33278423]
[1743291222495,3.67223422,601.71,600.99,0.33278423]
[1743291222693,3.67223422,601.7,600.99,0.33278423]
[1743291222891,1.41239778,601.69,600.99,0.33278423]
[1743291223086,1.41239778,601.68,600.99,0.33278423]
[1743291223290,1.41239778,601.67,600.99,0.33278423]
[1743291223488,1.41239778,601.66,600.99,0.33278423]
[1743291223687,1.41239778,601.65,600.99,0.33278423]
[1743291223887,1.41239778,601.64,600.99,0.33278423]
[1743291224090,1.41239778,601.63,600.99,0.33278423]
[1743291224387,1.41198534,601.62,600.99,0.33278423]
[1743291224690,1.41198534,601.61,600.99,0.33278423]
[1743291224890,1.41198534,601.6,600.99,0.33278423]
[1743291225197,1.41198534,601.59,600.99,0.33278423]
[1743291225492,2.90006544,601.61,600.99,0.33278423]
[1743291225493,1.41198534,601.58,600.99,0.33278423]
[1743291225694,1.41198534,601.57,600.99,0.33278423]
[1743291225993,1.41198534,601.56,600.99,0.33278423]
[1743291226293,2.52753572,601.55,600.99,0.33278423]
[1743291226489,1.11555038,601.55,600.99,0.33278423]
[1743291226794,1.11555038,601.54,600.99,0.33278423]
[1743291227392,1.11555038,601.53,600.99,0.33278423]
[1743291227994,3.17656561,601.71,600.99,0.33278423]
[1743291228196,4.58743235,601.7,600.99,0.33278423]
[1743291228391,4.58743235,601.69,600.99,0.33278423]
[1743291228596,3.66826425,601.68,600.99,0.33278423]
[1743291228896,1.41086674,601.67,600.99,0.33278423]
[1743291229096,1.41086674,601.66,600.99,0.33278423]
[1743291229295,1.41086674,601.65,600.99,0.33278423]
[1743291229492,1.41032049,601.64,600.99,0.33278423]
[1743291229693,1.41032049,601.63,600.99,0.33278423]
[1743291229894,1.41032049,601.62,600.99,0.33278423]
[1743291230090,1.41032049,601.61,600.99,0.33278423]
[1743291230291,1.41032049,601.6,600.99,0.33278423]
[1743291230494,1.11414983,601.61,600.99,0.33278423]
[1743291231097,0.625,601.64,600.99,0.33278423]
[1743291232597,1.752,601.63,600.99,0.33278423]
[1743291234497,0.921,601.62,600.99,0.33278423]
[1743291235399,1.069,601.61,600.99,0.33278423]
[1743291238293,1.11325079,601.6,600.99,0.33278423]
[1743291238699,1.11325079,601.59,600.99,0.33278423]
[1743291239299,1.069,601.61,600.99,0.33278423]
[1743291239700,1.11299011,601.6,600.99,0.33278423]
[1743291240298,1.11299011,601.59,600.99,0.33278423]
[1743291241005,1.069,601.61,600.99,0.33278423]
[1743291241599,1.11298299,601.6,600.99,0.33278423]
[1743291242105,1.069,601.61,600.99,0.33278423]
[1743291247209,1.335,601.6,600.99,0.33278423]
[1743291255712,0.625,601.59,600.99,0.33278423]
[1743291259328,1.234,601.58,600.99,0.33278423]
[1743291262125,2.155,601.58,600.99,0.33278423]
[1743291264231,2.155,601.58,601.02,1.49265184]
[1743291264730,3.58,601.58,601.03,0.33276209]
[1743291268434,5.017,601.58,601.03,0.33276209]
[1743291272540,6.193,601.58,601.04,1.49265184]
[1743291272736,6.193,601.58,601.05,0.33275101]
[1743291280156,6.818,601.58,601.05,0.33275101]
[1743291301574,6.818,601.58,601.06,1.49265184]
[1743291301767,6.818,601.58,601.07,0.33273994]
[1743291318490,6.818,601.58,601.11,1.49265184]
[1743291318788,6.818,601.58,601.12,0.33271227]
[1743291319690,6.818,601.58,601.12,1.82536411]
[1743291321690,6.818,601.58,601.12,0.33271227]
[1743291323487,6.818,601.58,601.15,1.49265184]
[1743291323790,6.818,601.58,601.16,0.33269013]
[1743291349607,6.818,601.58,601.17,1.49265184]
[1743291349812,6.818,601.58,601.18,0.33267906]
[1743291356617,5.584,601.58,601.18,0.33267906]
[1743291356915,4.159,601.58,601.18,0.33267906]
[1743291458607,4.159,601.58,601.22,1.49265184]
[1743291458808,4.159,601.58,601.23,0.33265139]
[1743291476222,4.159,601.58,601.23,1.82530323]
[1743291480222,4.159,601.58,601.27,1.49265184]
[1743291480422,4.159,601.58,601.28,0.33262373]
[1743291482430,4.159,601.58,601.3,1.49265184]
[1743291482632,4.159,601.58,601.31,0.33260714]
[1743291484633,4.159,601.58,601.45,1.49265184]
[1743291484832,4.159,601.58,601.46,0.33252419]
[1743291485029,0.66429819,602.3,601.46,0.33252419]
[1743291485232,5.25109414,602.29,601.46,0.33252419]
[1743291485434,5.25109414,602.28,601.46,0.33252419]
[1743291485633,4.58678367,602.27,601.46,0.33252419]
[1743291485833,4.58678367,602.26,601.46,0.33252419]
[1743291486035,4.58678367,602.25,601.46,0.33252419]
[1743291486235,4.58678367,602.24,601.46,0.33252419]
[1743291486429,4.58678367,602.23,601.46,0.33252419]
[1743291486633,3.66782226,602.22,601.46,0.33252419]
[1743291486828,3.66782226,602.21,601.46,0.33252419]
[1743291487034,3.66782226,602.2,601.46,0.33252419]
[1743291487235,3.66887964,602.19,601.46,0.33252419]
[1743291487437,3.6688654,602.18,601.46,0.33252419]
[1743291487634,6.56533752,602.17,601.46,0.33252419]
[1743291487935,1.41070087,602.16,601.46,0.33252419]
[1743291488229,3.40370087,602.15,601.46,0.33252419]
[1743291488430,1.41070087,602.14,601.46,0.33252419]
[1743291488631,1.41070087,602.13,601.46,0.33252419]
[1743291488831,2.52471935,602.12,601.46,0.33252419]
[1743291489033,1.41070087,602.11,601.46,0.33252419]
[1743291489233,1.41070087,602.1,601.46,0.33252419]
[1743291489436,1.41187531,602.09,601.46,0.33252419]
[1743291489634,1.11401848,602.1,601.46,0.33252419]
[1743291489831,1.41187829,602.09,601.46,0.33252419]
[1743291490037,1.41189502,602.08,601.46,0.33252419]
[1743291490236,1.11401848,602.08,601.46,0.33252419]
[1743291491136,1.11401848,602.07,601.46,0.33252419]
[1743291491637,2.22,602.14,601.46,0.33252419]
[1743291491937,1.41200559,602.13,601.46,0.33252419]
[1743291492137,1.41200559,602.12,601.46,0.33252419]
[1743291492337,1.41200559,602.11,601.46,0.33252419]
[1743291492540,1.41200559,602.1,601.46,0.33252419]
[1743291492738,1.11507883,602.11,601.46,0.33252419]
[1743291492938,2.52708932,602.1,601.46,0.33252419]
[1743291493237,1.41207732,602.09,601.46,0.33252419]
[1743291493438,1.11507883,602.09,601.46,0.33252419]
[1743291494037,1.11507883,602.08,601.46,0.33252419]
[1743291494438,1.11507883,602.07,601.46,0.33252419]
[1743291495140,2.22,602.14,601.46,0.33252419]
[1743291495434,1.41225025,602.13,601.46,0.33252419]
[1743291495639,1.41225025,602.12,601.46,0.33252419]
[1743291495836,1.41225025,602.11,601.46,0.33252419]
[1743291496034,1.41225025,602.1,601.46,0.33252419]
[1743291496236,1.41225025,602.09,601.46,0.33252419]
[1743291496441,1.11527609,602.11,601.46,0.33252419]
[1743291496637,1.4122522,602.1,601.46,0.33252419]
[1743291496837,1.4122522,602.09,601.46,0.33252419]
[1743291497036,1.4122522,602.08,601.46,0.33252419]
[1743291497240,1.11527609,602.07,601.46,0.33252419]
[1743291497840,2.22,602.14,601.46,0.33252419]
[1743291498037,1.41225908,602.13,601.46,0.33252419]
[1743291498241,1.41225908,602.12,601.46,0.33252419]
[1743291498440,1.41225908,602.11,601.46,0.33252419]
[1743291498645,2.52753806,602.1,601.52,1.49265184]
[1743291498942,1.41225908,602.09,601.53,0.33248549]
[1743291499141,1.11527898,602.1,601.53,0.33248549]
[1743291499343,1.41223251,602.09,601.53,0.33248549]
[1743291499538,1.11527898,602.08,601.53,0.33248549]
[1743291500342,2.22,602.14,601.53,0.33248549]
[1743291500644,1.41223898,602.13,601.53,0.33248549]
[1743291500840,2.52749824,602.12,601.53,1.82513733]
[1743291501039,1.41223898,602.11,601.53,1.82513733]
[1743291501239,1.41223898,602.1,601.53,1.82513733]
[1743291501437,1.11525926,602.09,601.53,1.82513733]
[1743291502038,2.22,602.14,601.53,1.82513733]
[1743291502039,1.11525926,602.08,601.53,1.82513733]
[1743291502744,2.22,602.14,601.54,1.49265184]
[1743291502943,2.52763744,602.13,601.55,0.33247444]
[1743291503145,1.41231491,602.12,601.55,0.33247444]
[1743291503341,1.41231491,602.11,601.55,0.33247444]
[1743291503539,1.41231491,602.1,601.55,0.33247444]
[1743291503743,1.41231491,602.09,601.55,0.33247444]
[1743291503939,1.4123789,602.08,601.55,0.33247444]
[1743291504245,2.52776489,602.07,601.55,0.33247444]
[1743291504443,1.41244236,602.06,601.55,0.33247444]
[1743291504640,1.11532253,602.07,601.55,0.33247444]
[1743291504842,1.11532253,602.06,601.55,0.33247444]
[1743291505346,1.11532253,602.05,601.55,0.33247444]
[1743291505941,0.625,602.07,601.55,0.33247444]
[1743291506946,1.11558914,602.06,601.55,0.33247444]
[1743291507440,1.11558914,602.05,601.55,0.33247444]
[1743291508348,0.625,602.07,601.55,0.33247444]
[1743291508741,1.11572039,602.06,601.55,0.33247444]
[1743291509347,1.11572039,602.05,601.55,0.33247444]
[1743291510041,0.625,602.07,601.55,0.33247444]
[1743291510649,2.52899301,602.06,601.55,0.33247444]
[1743291510849,1.41307532,602.05,601.55,0.33247444]
[1743291511046,2.52899301,602.04,601.55,0.33247444]
[1743291511349,1.11591769,602.04,601.55,0.33247444]
[1743291512051,2.03691769,602.03,601.55,0.33247444]
[1743291512550,1.11591769,602.02,601.55,0.33247444]
[1743291513050,1.11591769,602.01,601.55,0.33247444]
[1743291513856,0.921,602.03,601.55,0.33247444]
[1743291514353,1.11634878,602.02,601.55,0.33247444]
[1743291514851,0.921,602.03,601.55,0.33247444]
[1743291514852,1.11634878,602.01,601.55,0.33247444]
[1743291515257,1.11634878,602.0,601.55,0.33247444]
[1743291515857,0.921,602.03,601.55,0.33247444]
[1743291516059,1.41398537,602.02,601.55,0.33247444]
[1743291516254,0.921,602.03,601.55,0.33247444]
[1743291516459,2.53105506,602.02,601.55,0.33247444]
[1743291516659,1.11683835,602.02,601.55,0.33247444]
[1743291516857,1.11683835,602.01,601.55,0.33247444]
[1743291517458,1.11683835,602.0,601.55,0.33247444]
[1743291518060,1.11683835,601.99,601.55,0.33247444]
[1743291518261,1.11683835,601.98,601.55,0.33247444]
[1743291518659,0.921,602.03,601.55,0.33247444]
[1743291518856,1.41468857,602.02,601.55,0.33247444]
[1743291519060,1.41468857,602.01,601.55,0.33247444]
[1743291519261,1.41468857,602.0,601.55,0.33247444]
[1743291519563,1.11720901,602.0,601.55,0.33247444]
[1743291520156,1.11720901,601.99,601.55,0.33247444]
[1743291520758,0.625,602.01,601.55,0.33247444]
[1743291520759,1.11720901,601.98,601.55,0.33247444]
[1743291521359,0.625,602.01,601.55,0.33247444]
[1743291521564,1.41496132,602.0,601.55,0.33247444]
[1743291521765,0.625,602.01,601.55,0.33247444]
[1743291521966,1.11742293,601.99,601.55,0.33247444]
[1743291522566,0.625,602.01,601.55,0.33247444]
[1743291523468,1.11740614,602.0,601.55,0.33247444]
[1743291524167,1.11740614,601.99,601.55,0.33247444]
[1743291524770,0.994,601.98,601.55,0.33247444]
[1743291529671,1.563,601.97,601.55,0.33247444]
[1743291534670,0.921,601.96,601.55,0.33247444]
[1743291545084,1.298,601.95,601.55,0.33247444]
[1743291546890,2.911,601.95,601.55,0.33247444]
[1743291563300,2.911,601.95,601.56,1.49265184]
[1743291563495,2.911,601.95,601.57,0.33246338]
[1743291565796,3.832,601.95,601.57,0.33246338]
[1743291709436,3.832,601.95,601.57,1.82511522]
[1743291715840,3.832,601.95,601.57,0.33246338]
[1743291775092,3.832,601.95,601.57,1.82511522]
[1743291776895,3.832,601.95,601.57,0.33246338]
[1743291800209,3.832,601.95,601.57,1.82511522]
[1743291802012,3.832,601.95,601.63,1.49265184]
[1743291802312,3.832,601.95,601.64,0.3324247]
[1743291805521,3.832,601.95,601.64,1.82507654]
[1743291806823,3.832,601.95,601.67,1.49265184]
[1743291807023,3.832,601.95,601.68,0.3324026]
[1743291811321,3.832,601.95,601.72,1.49265184]
[1743291811525,3.832,601.95,601.73,0.33237498]
[1743291811919,2.42196399,602.5,601.73,0.33237498]
[1743291812125,6.96846044,602.49,601.73,0.33237498]
[1743291812326,4.54649645,602.48,601.73,0.33237498]
[1743291812533,4.54649645,602.47,601.73,0.33237498]
[1743291812827,3.62705448,602.46,601.73,0.33237498]
[1743291813127,6.48288451,602.45,601.73,0.33237498]
[1743291813330,1.39502095,602.44,601.73,0.33237498]
[1743291813528,1.39502095,602.43,601.73,0.33237498]
[1743291813731,1.39502095,602.42,601.73,0.33237498]
[1743291813928,1.39502095,602.41,601.73,0.33237498]
[1743291814124,1.39502095,602.4,601.73,0.33237498]
[1743291814429,1.09788388,602.39,601.73,0.33237498]
[1743291815030,1.266,602.38,601.73,0.33237498]
[1743291815230,1.891,602.38,601.73,0.33237498]
[1743291833339,0.922,602.37,601.73,0.33237498]
[1743291839842,0.922,602.37,601.77,1.49265184]
[1743291840042,1.379,602.36,601.78,0.33234736]
[1743291840843,0.625,602.35,601.78,0.33234736]
[1743291841538,0.625,602.35,601.8,1.49265184]
[1743291842342,0.625,602.35,601.81,0.3323308]
[1743291855845,0.922,602.34,601.81,0.3323308]
[1743291857852,1.029,602.33,601.81,0.3323308]
[1743291862457,2.449,602.33,601.81,0.3323308]
[1743291867761,2.449,602.33,601.88,1.49265184]
[1743291867963,2.449,602.33,601.89,0.33228663]
[1743291872861,3.075,602.33,601.89,0.33228663]
[1743291873968,3.075,602.33,601.89,1.82493847]
[1743291876172,3.075,602.33,601.9,1.49265184]
[1743291876466,3.075,602.33,601.91,0.33227558]
[1743291882580,3.997,602.33,601.91,0.33227558]
[1743291901995,3.997,602.33,601.92,1.49265184]
[1743291902190,3.997,602.33,601.93,0.33226454]
[1743291903296,3.997,602.33,601.95,1.49265184]
[1743291903597,3.997,602.33,601.96,0.33224798]
[1743291910197,3.997,602.33,602.03,1.49265184]
[1743291910401,3.997,602.33,602.04,0.33220384]
[1743291950445,3.997,602.33,602.12,1.49265184]
[1743291950654,3.371,602.33,602.13,0.33215418]
[1743291950946,0.66359581,602.99,602.13,0.33215418]
[1743291950947,4.360566,602.98,602.13,0.33215418]
[1743291951147,6.67118312,602.97,602.13,0.33215418]
[1743291951349,6.67118312,602.96,602.13,0.33215418]
[1743291951539,6.67118312,602.95,602.13,0.33215418]
[1743291951745,6.67118312,602.94,602.13,0.33215418]
[1743291951945,5.2025834,602.93,602.13,0.33215418]
[1743291952145,5.2025834,602.92,602.13,0.33215418]
[1743291952341,4.53898759,602.91,602.13,0.33215418]
[1743291952549,4.53898759,602.9,602.13,0.33215418]
[1743291952743,1.65181258,603.03,602.13,0.33215418]
[1743291952744,7.38943956,602.89,602.13,0.33215418]
[1743291952948,3.62110816,602.88,602.13,0.33215418]
[1743291953149,3.62110816,602.87,602.13,0.33215418]
[1743291953344,3.62110816,602.86,602.13,0.33215418]
[1743291953546,1.39273769,602.85,602.13,0.33215418]
[1743291953849,1.39273769,602.84,602.14,1.49265184]
[1743291954048,1.39273769,602.83,602.15,0.33214315]
[1743291954249,1.39273769,602.82,602.15,0.33214315]
[1743291954449,1.39273769,602.81,602.15,0.33214315]
[1743291954650,1.39273769,602.8,602.15,0.33214315]
[1743291954850,1.39273769,602.79,602.15,0.33214315]
[1743291955149,1.09632768,602.79,602.15,0.33214315]
[1743291955350,1.39391275,602.78,602.15,0.33214315]
[1743291955542,1.09632768,602.79,602.15,0.33214315]
[1743291955746,1.09632768,602.77,602.15,0.33214315]
[1743291956350,1.09632768,602.76,602.15,0.33214315]
[1743291956743,1.296,602.82,602.15,0.33214315]
[1743291956744,1.09632768,602.75,602.15,0.33214315]
[1743291957347,1.296,602.82,602.15,0.33214315]
[1743291957547,2.49205777,602.81,602.15,0.33214315]
[1743291957746,1.39450003,602.8,602.15,0.33214315]
[1743291957946,1.39450003,602.79,602.15,0.33214315]
[1743291958152,1.39450003,602.78,602.15,0.33214315]
[1743291958347,1.09755774,602.78,602.15,0.33214315]
[1743291959054,1.09755774,602.77,602.15,0.33214315]
[1743291960053,1.09755774,602.76,602.15,0.33214315]
[1743291960552,1.08499748,602.76,602.15,0.33214315]
[1743291960954,1.296,602.82,602.15,0.33214315]
[1743291961156,1.39520833,602.81,602.15,0.33214315]
[1743291961357,1.39520833,602.8,602.15,0.33214315]
[1743291961658,1.39520833,602.79,602.15,0.33214315]
[1743291961857,1.39520833,602.78,602.15,0.33214315]
[1743291962059,1.296,602.82,602.15,0.33214315]
[1743291962254,1.39545804,602.81,602.15,0.33214315]
[1743291962455,1.39545804,602.8,602.15,0.33214315]
[1743291962654,1.39545804,602.79,602.15,0.33214315]
[1743291962959,1.39545804,602.78,602.15,0.33214315]
[1743291963152,1.296,602.82,602.15,0.33214315]
[1743291963355,1.39572981,602.81,602.15,0.33214315]
[1743291963555,1.39572981,602.8,602.15,0.33214315]
[1743291963753,1.296,602.82,602.15,0.33214315]
[1743291965059,1.39601951,602.81,602.15,0.33214315]
[1743291965254,1.296,602.82,602.15,0.33214315]
[1743291965459,1.39599642,602.81,602.15,0.33214315]
[1743291965760,1.296,602.82,602.15,0.33214315]
[1743291966059,1.39599642,602.81,602.15,0.33214315]
[1743291966253,1.296,602.82,602.15,0.33214315]
[1743291966660,1.39589315,602.81,602.15,0.33214315]
[1743291966861,1.296,602.82,602.15,0.33214315]
[1743291967056,1.3958999,602.81,602.15,0.33214315]
[1743291967252,1.296,602.82,602.15,0.33214315]
[1743291967456,1.39582572,602.81,602.15,0.33214315]
[1743291967758,1.296,602.82,602.15,0.33214315]
[1743291967957,1.39582601,602.81,602.15,0.33214315]
[1743291968158,1.296,602.82,602.15,0.33214315]
[1743291968352,1.39577291,602.81,602.15,0.33214315]
[1743291968556,1.296,602.82,602.15,0.33214315]
[1743291968753,1.39575127,602.81,602.15,0.33214315]
[1743291968957,1.296,602.82,602.15,0.33214315]
[1743291969156,1.39575127,602.81,602.15,0.33214315]
[1743291969356,1.296,602.82,602.15,0.33214315]
[1743291969554,1.39573089,602.81,602.15,0.33214315]
[1743291969756,1.39573089,602.8,602.15,0.33214315]
[1743291969960,1.296,602.82,602.15,0.33214315]
[1743291969961,1.39573089,602.79,602.15,0.33214315]
[1743291970262,1.39573089,602.78,602.15,0.33214315]
[1743291970461,1.296,602.82,602.15,0.33214315]
[1743291970657,1.39572225,602.81,602.15,0.33214315]
[1743291970857,1.39572225,602.8,602.15,0.33214315]
[1743291971059,1.39572225,602.79,602.15,0.33214315]
[1743291971261,1.39572225,602.78,602.15,0.33214315]
[1743291971455,0.923,602.8,602.15,0.33214315]
[1743291971656,1.39571133,602.79,602.15,0.33214315]
[1743291971859,0.923,602.8,602.15,0.33214315]
[1743291972158,1.39569854,602.79,602.15,0.33214315]
[1743291972361,0.923,602.8,602.15,0.33214315]
[1743291972563,1.39568504,602.79,602.15,0.33214315]
[1743291972860,1.39569307,602.78,602.15,0.33214315]
[1743291973156,1.09830731,602.78,602.15,0.33214315]
[1743291973565,5.64727793,602.77,602.15,0.33214315]
[1743291973764,4.54902389,602.76,602.15,0.33214315]
[1743291974061,4.54903778,602.75,602.15,0.33214315]
[1743291974265,1.39570849,602.74,602.15,0.33214315]
[1743291974456,4.54899333,602.73,602.15,0.33214315]
[1743291974659,4.54899333,602.72,602.15,0.33214315]
[1743291974856,4.54899333,602.71,602.15,0.33214315]
[1743291975057,4.54899333,602.7,602.15,0.33214315]
[1743291975261,1.39570849,602.69,602.15,0.33214315]
[1743291975461,1.39570849,602.68,602.15,0.33214315]
[1743291975660,1.39570849,602.67,602.15,0.33214315]
[1743291975963,1.39570849,602.66,602.15,0.33214315]
[1743291976158,1.39570849,602.65,602.15,0.33214315]
[1743291976358,0.626,602.65,602.15,0.33214315]
[1743291976961,1.09830731,602.64,602.15,0.33214315]
[1743291977462,1.09830731,602.63,602.15,0.33214315]
[1743291978064,0.626,602.65,602.15,0.33214315]
[1743291980866,1.088,602.64,602.15,0.33214315]
[1743291983371,1.66,602.63,602.15,0.33214315]
[1743291992472,1.39511477,602.62,602.15,0.33214315]
[1743291992776,2.02111477,602.61,602.15,0.33214315]
[1743291992976,1.39511477,602.6,602.15,0.33214315]
[1743291993177,1.39511477,602.59,602.15,0.33214315]
[1743291993376,1.39511477,602.58,602.15,0.33214315]
[1743291993572,1.0980258,602.58,602.15,0.33214315]
[1743291993776,1.39484229,602.57,602.15,0.33214315]
[1743291993979,1.39484229,602.56,602.15,0.33214315]
[1743291994173,1.39484229,602.55,602.15,0.33214315]
[1743291994377,1.0980258,602.57,602.15,0.33214315]
[1743291994576,1.0980258,602.54,602.15,0.33214315]
[1743291995274,0.924,602.58,602.15,0.33214315]
[1743291995475,1.39413349,602.57,602.15,0.33214315]
[1743291995676,0.924,602.58,602.15,0.33214315]
[1743291995877,1.39413166,602.57,602.15,0.33214315]
[1743291996080,1.097171,602.57,602.15,0.33214315]
[1743291996674,2.49102488,602.56,602.15,0.33214315]
[1743291996975,1.39385388,602.55,602.15,0.33214315]
[1743291997174,1.097171,602.54,602.15,0.33214315]
[1743291997576,1.097171,602.53,602.15,0.33214315]
[1743291997977,0.924,602.58,602.15,0.33214315]
[1743291998174,1.39346873,602.57,602.15,0.33214315]
[1743291998377,0.924,602.58,602.15,0.33214315]
[1743291998579,1.09641627,602.56,602.15,0.33214315]
[1743291999283,1.09641627,602.55,602.15,0.33214315]
[1743291999477,1.09641627,602.54,602.15,0.33214315]
[1743292000081,0.924,602.58,602.15,0.33214315]
[1743292000779,1.09595139,602.57,602.15,0.33214315]
[1743292001284,0.924,602.58,602.15,0.33214315]
[1743292002485,1.09577349,602.57,602.15,0.33214315]
[1743292002886,0.924,602.58,602.15,0.33214315]
[1743292004185,1.09541229,602.57,602.15,0.33214315]
[1743292004890,0.924,602.58,602.15,0.33214315]
[1743292005886,2.505,602.58,602.15,0.33214315]
[1743292024005,3.131,602.58,602.15,0.33214315]
[1743292024701,4.261,602.58,602.15,0.33214315]
[1743292120480,4.261,602.58,602.18,1.49265184]
[1743292120680,4.261,602.58,602.19,0.33212109]
[1743292123075,4.261,602.58,602.19,1.82477293]
[1743292128277,4.261,602.58,602.19,0.33212109]
[1743292200034,4.261,602.58,602.19,1.82477293]
[1743292201736,4.261,602.58,602.23,1.49265184]
[1743292201940,4.261,602.58,602.24,0.33209351]
[1743292203638,4.261,602.58,602.35,1.49265184]
[1743292203842,4.261,602.58,602.36,0.33202735]
[1743292204242,0.66335802,603.11,602.36,0.33202735]
[1743292204437,4.5411861,603.1,602.36,0.33202735]
[1743292204642,4.5411861,603.09,602.36,0.33202735]
[1743292204836,4.5411861,603.08,602.36,0.33202735]
[1743292205041,4.5411861,603.07,602.36,0.33202735]
[1743292205241,2.85084197,603.08,602.36,0.33202735]
[1743292205242,4.54118496,603.06,602.36,0.33202735]
[1743292205544,3.62288592,603.05,602.36,0.33202735]
[1743292205744,3.62288592,603.04,602.36,0.33202735]
[1743292206042,2.85084197,603.06,602.36,0.33202735]
[1743292206043,4.24425963,603.03,602.36,0.33202735]
[1743292206247,1.39341766,603.02,602.36,0.33202735]
[1743292206437,1.39341766,603.01,602.36,0.33202735]
[1743292206638,2.75241766,603.0,602.36,0.33202735]
[1743292206844,1.39341766,602.99,602.36,0.33202735]
[1743292207143,0.925,602.99,602.36,0.33202735]
[1743292207338,3.11709968,602.98,602.36,0.33202735]
[1743292207541,4.54226394,602.97,602.36,0.33202735]
[1743292207739,4.54226394,602.96,602.36,0.33202735]
[1743292207936,4.54226394,602.95,602.36,0.33202735]
[1743292208138,4.54226394,602.94,602.36,0.33202735]
[1743292208444,4.54226394,602.93,602.36,0.33202735]
[1743292208643,4.54226394,602.92,602.36,0.33202735]
[1743292208839,2.31218825,602.91,602.36,0.33202735]
[1743292209036,1.393622,602.9,602.36,0.33202735]
[1743292209237,1.393622,602.89,602.36,0.33202735]
[1743292209439,1.393622,602.88,602.36,0.33202735]
[1743292209638,1.393622,602.87,602.36,0.33202735]
[1743292209840,1.393622,602.86,602.36,0.33202735]
[1743292210039,1.393622,602.85,602.36,0.33202735]